[Event "American Cup Open Champions 2025"]
[Site "Saint Louis"]
[Date "2025.03.16"]
[Round "1.3"]
[White "Caruana, Fabiano"]
[Black "Robson, Ray"]
[Result "1/2-1/2"]
[Annotator "TA"]
[ECO "A06"]
[WhiteElo "2783"]
[BlackElo "2689"]
[PlyCount "131"]
[EventDate "2025.03.02"]
[EventType "k.o."]
[EventCountry "USA"]
[SourceTitle "playchess.com"]
[Source "ChessBase"]
[SourceQuality "1"]
[TimeControl "180+2"]

{[%evp 9,131,25,26,-16,-22,-22,-15,-25,-22,-21,-19,-5,-2,-16,20,20,12,4,0,-7,-8,0,-4,-11,3,16,0,11,31,23,20,-16,-11,-33,0,-29,0,0,0,0,0,-10,0,-31,0,0,0,-27,0,-17,0,-14,0,0,0,-53,-46,-112,0,-131,-122,-145,-120,-199,-156,-205,-203,-209,-210,-478,-471,-449,-455,-465,-449,-839,-831,-827,-808,-5206,-809,-834,-835,-841,-827,-884,-847,-828,-751,-783,-564,-719,-712,-785,-562,-520,-484,-1415,-667,-661,0,0,0,0,0,0,0,0,0,0,0,0,0,0,0,0,0,0,0,0,0,0,0,0]} 1. Nf3 {[%emt 0:00:01]} d5 {[%emt 0:00:02]} 2. e3 {[%emt 0:00:01]} (2. c4 d4 3. b4 c5 4. Bb2 Nf6 5. g3 Qc7 6. Bg2 e5 7. e3 Bg4 8. Qa4+ Nbd7 9. O-O Be7 10. bxc5 O-O 11. exd4 Bxf3 12. Bxf3 exd4 13. Bxd4 Bxc5 {1-0 Caruana,F (2783)-Robson,R (2689) Champions Showdown Kings 2025 (3.3)}) 2... c5 {[%emt 0:00:04]} 3. b3 {[%emt 0:00:02]} f6 {[%emt 0:00:08]} 4. Bb5+ {[%emt 0:00:27]} Bd7 {[%emt 0:00:11]} 5. Bxd7+ $146 {[%emt 0:00:07]} (5. Qe2 e5 6. Bxd7+ Qxd7 7. d4 cxd4 8. exd4 e4 9. c4 f5 10. Ne5 Bb4+ 11. Bd2 Bxd2+ 12. Nxd2 {½-½ Lomonosovas,V (2143)-Milasevicius,J (2004) Panevezys-ch 2007 (7)}) 5... Qxd7 {[%emt 0:00:02]} 6. c4 {[%emt 0:00:15] A06: Réti Opening: 1 Nf3 d5.} d4 {[%emt 0:00:04]} 7. exd4 {[%emt 0:00:02]} cxd4 {[%emt 0:00:01]} 8. O-O {[%emt 0:00:03]} e5 {[%emt 0:00:05]} 9. d3 {[%emt 0:00:01]} Nc6 {[%emt 0:00:03]} 10. a3 {[%emt 0:00:25]} a5 {[%emt 0:00:05]} 11. Nbd2 {[%emt 0:00:02]} Bd6 {[%emt 0:00:22]} 12. Ne4 {[%emt 0:00:01]} Nge7 {[%emt 0:00:02]} 13. Bd2 {[%emt 0:00:10]} O-O {[%emt 0:00:07]} 14. b4 {[%emt 0:00:10]} axb4 {[%emt 0:00:09]} 15. c5 {[%emt 0:00:01]} Bc7 {[%emt 0:00:02] A sharp opening} 16. axb4 {[%emt 0:00:01]} b5 {[%emt 0:00:21]} 17. cxb6 {[%emt 0:00:04]} Bxb6 {[%emt 0:00:02]} 18. b5 {[%emt 0:00:35]} Rxa1 {[%emt 0:00:23]} 19. Qxa1 {[%emt 0:00:02]} Na7 {[%emt 0:00:09]} 20. Rb1 {[%emt 0:00:01]} (20. Bb4 Rb8 21. Bd6 Rb7 22. Qa2+) 20... Nd5 {[%emt 0:00:07]} (20... Nxb5 $2 21. Qa4 $18) 21. h4 {[%emt 0:00:30]} h5 {[%emt 0:00:21]} 22. Ng3 {[%emt 0:00:14]} g6 {[%emt 0:00:02]} 23. Ne4 {[%emt 0:00:03]} Kg7 {[%emt 0:00:02]} (23... Nxb5 $2 24. Qa4 Ndc7 25. Bb4 $18) 24. Qa4 {[%emt 0:00:07]} Rc8 {[%emt 0:00:04]} 25. Qb3 {[%emt 0:00:05]} Rc7 {[%emt 0:00:06]} 26. Qb2 {[%emt 0:00:03]} Rb7 {[%emt 0:00:17]} 27. Qc1 {[%emt 0:00:10]} Rc7 {[%emt 0:00:05]} (27... Nxb5 28. Bh6+ Kh7 29. Rxb5 Qxb5 30. Qc8 $18) 28. Qb2 {[%emt 0:00:03]} Qe7 {[%emt 0:00:10]} 29. Qa2 {[%emt 0:00:02]} Qd7 {[%emt 0:00:03]} 30. Qa6 {[%emt 0:00:02]} Qc8 {[%emt 0:00:09]} (30... Nc8 {is more complex.} 31. Qa3 Nc3 32. Bxc3 dxc3 33. Rc1 Qxb5 34. Rxc3 Qb1+) 31. Qa2 {[%emt 0:00:02]} Qd7 {[%emt 0:00:01]} 32. Ba5 {[%emt 0:00:01]} (32. Qa6 $11) 32... Nc8 $1 $15 {[%emt 0:00:08] [#]} (32... Nxb5 $2 33. Bxb6 Nbc3 (33... Nxb6 $2 34. Qa6 $18) 34. Nxc3 Nxc3 35. Qa5 $18) 33. Bd2 {[%emt 0:00:06]} ({Better is} 33. Bxb6 $15 Ncxb6 34. Qa5) 33... Nce7 {[%emt 0:00:03]} (33... Nc3 $17 34. Bxc3 dxc3) 34. g3 {[%emt 0:00:03]} (34. Qb3 $11 {remains equal.}) 34... Nc3 $17 {[%emt 0:00:01]} 35. Bxc3 dxc3 {[%emt 0:00:01][%csl Oc3] Black has a strong passed pawn} 36. Qc2 {[%emt 0:00:04]} (36. Ne1 $17) 36... Nd5 {[%emt 0:00:01][%cal Be7d5,Bd5f4,Bf4d3,Bd3f2][%mdl 32]} 37. Kg2 {[%emt 0:00:01] [#] Wards off Qh3+} (37. Kh2 $17 {was necessary.}) 37... Qg4 $1 $19 {[%emt 0:00:04]} 38. Nh2 {[%emt 0:00:02]} Nf4+ {[%emt 0:00:05]} 39. Kh1 $2 {[%emt 0:00:03]} (39. Kg1 Qe2 40. Rc1 Qxc2 41. Rxc2) 39... Qe2 {[%emt 0:00:01]} 40. Rc1 {[%emt 0:00:04] White is weak on the dark squares} Qxc2 {[%emt 0:00:05]} 41. Rxc2 {[%emt 0:00:01]} Nxd3 {[%emt 0:00:01]} 42. Rxc3 {[%emt 0:00:01]} (42. Nf3 $142) 42... Nxf2+ {[%emt 0:00:03]} 43. Kg2 {[%emt 0:00:01]} Nxe4 {[%emt 0:00:01]} 44. Rd3 {[%emt 0:00:01]} Nc5 {[%emt 0:00:02]} 45. Rd6 {[%emt 0:00:01]} Rb7 {[%emt 0:00:02]} 46. Nf3 {[%emt 0:00:01]} Kf7 {[%emt 0:00:01]} 47. Nd2 {[%emt 0:00:00]} Ba7 {[%emt 0:00:02]} 48. Rc6 {[%emt 0:00:02]} Ne6 {[%emt 0:00:03]} 49. Nc4 {[%emt 0:00:01]} Ke7 {[%emt 0:00:01]} ({Worse is} 49... Rxb5 50. Nd6+ Ke7 51. Nxb5 $11) 50. b6 {[%emt 0:00:02]} Bb8 {[%emt 0:00:03]} 51. Na5 {[%emt 0:00:00]} Rd7 {[%emt 0:00:02]} 52. Rc8 {[%emt 0:00:01]} Rd2+ {[%emt 0:00:02]} 53. Kh3 {[%emt 0:00:01]} (53. Kf1 $142 Bd6 54. Nc4 Rd1+ 55. Ke2) 53... Bd6 {[%emt 0:00:02] and ...g5 should not be overlooked} 54. Nc4 {[%emt 0:00:03]} Rd5 {[%emt 0:00:02]} (54... Rf2 $19 55. Nxd6 g5 (55... Kxd6 56. b7 $11) 56. Nf5+ Kd7 (56... Rxf5 $2 57. Rc2 $19)) 55. Nxd6 $11 {[%emt 0:00:02] The position is equal.} Rxd6 {[%emt 0:00:02][%mdl 4096] Endgame KRN-KR} (55... Kxd6 56. b7 Rb5 57. b8=Q+ Rxb8 58. Rxb8) (55... Kxd6 $5 56. b7 $8 Rb5 57. b8=Q+ Rxb8 58. Rxb8 g5 59. Rb6+ Kd5 $11) 56. b7 Rb6 {[%emt 0:00:01]} 57. b8=Q {[%emt 0:00:02]} Rxb8 {[%emt 0:00:01]} 58. Rxb8 {[%emt 0:00:01] KR-KN} f5 {[%emt 0:00:03]} 59. Kg2 {[%emt 0:00:01]} Nc5 {[%emt 0:00:02]} 60. Kf3 {[%emt 0:00:03]} Ne4 {[%emt 0:00:01]} 61. Rb6 {[%emt 0:00:02]} Kf7 {[%emt 0:00:01]} 62. Ra6 {[%emt 0:00:01]} Nd2+ {[%emt 0:00:02]} 63. Kf2 {[%emt 0:00:02]} Ne4+ {[%emt 0:00:00]} 64. Kf3 {[%emt 0:00:01]} Nd2+ {[%emt 0:00:01]} 65. Kf2 {[%emt 0:00:00]} Ne4+ {[%emt 0:00:01]} 66. Kf3 {[%emt 0:00:02] Whites escaped into a draw.   Weighted Error Value: White=0.48/Black=0.27 (precise)   Mistake:       	White=8     	Black=1      Inaccurate:     	White=3     	Black=6      OK:         	White=21    	Black=20     Best:        	---       	Black=5      Strong:       	---       	Black=2} 1/2-1/2

[Event "American Cup Open Champions 2025"]
[Site "Saint Louis"]
[Date "2025.03.16"]
[Round "1.3"]
[White "Aronian, Levon"]
[Black "Sevian, Samuel"]
[Result "0-1"]
[Annotator "TA"]
[ECO "D04"]
[WhiteElo "2748"]
[BlackElo "2692"]
[PlyCount "94"]
[EventDate "2025.03.02"]
[EventType "k.o."]
[EventCountry "USA"]
[SourceTitle "playchess.com"]
[Source "ChessBase"]
[SourceQuality "1"]
[TimeControl "180+2"]

{[%evp 9,93,10,19,2,42,45,45,45,47,37,70,68,64,58,123,47,73,73,64,28,66,49,90,93,107,120,104,104,133,122,146,116,114,120,117,110,112,90,81,72,104,91,99,83,89,82,113,86,90,87,94,80,81,77,100,0,0,0,20,29,30,35,18,0,75,0,0,0,5,2,15,-2,-2,-19,0,-43,-26,-42,-41,-45,-38,-42,-47,-463,-449,-29999]} 1. d4 {[%emt 0:00:01]} Nf6 {[%emt 0:00:01]} 2. Nf3 {[%emt 0:00:02]} d5 {[%emt 0:00:01]} 3. e3 {[%emt 0:00:01]} a6 {[%emt 0:00:03]} 4. Nbd2 {[%emt 0:00:10]} Bf5 {[%emt 0:00:07]} 5. c4 {[%emt 0:00:12]} e6 {[%emt 0:00:01]} 6. Nh4 {[%emt 0:00:10]} Bg4 {[%emt 0:00:05]} 7. Qb3 {[%emt 0:00:02]} Nc6 {[%emt 0:00:05]} 8. h3 {[%emt 0:00:07] White is slightly better.} Bh5 {[%emt 0:00:04]} 9. g4 {[%emt 0:00:01]} (9. Qxb7 $2 Na5 $19) 9... Bg6 {[%emt 0:00:02]} 10. Nxg6 {[%emt 0:00:07]} (10. Qxb7 $2 Na5 $19) 10... hxg6 {[%emt 0:00:02]} 11. g5 $36 {[%emt 0:00:15][%mdl 2048] White has good play.} (11. Qxb7 $2 Na5 $19) 11... Nh7 {[%emt 0:00:26]} (11... dxc4 $14 12. Qxb7 (12. Bxc4 Nd5 $11) 12... Na5) 12. Rg1 {[%emt 0:00:29]} (12. Qxb7 $2 Na5 $19) (12. f4 $16) 12... Na5 {[%emt 0:00:59]} 13. Qa4+ {[%emt 0:00:10]} c6 {[%emt 0:00:01]} 14. cxd5 {[%emt 0:00:09]} exd5 {[%emt 0:00:04][%cal Ob7b5]} 15. h4 {[%emt 0:00:08]} Be7 {[%emt 0:00:15]} 16. Nf3 {[%emt 0:00:21]} (16. b4 $6 Nc4 $15) 16... Nf8 {[%emt 0:00:10][%cal Oa5c4]} 17. Bd2 {[%emt 0:00:08]} Nc4 {[%emt 0:00:01]} 18. Bxc4 {[%emt 0:00:02]} dxc4 {[%emt 0:00:13]} 19. Qxc4 {[%emt 0:00:03]} Ne6 {[%emt 0:00:02]} 20. O-O-O {[%emt 0:00:06]} Qd5 {[%emt 0:00:08]} 21. Qxd5 {[%emt 0:00:11]} cxd5 {[%emt 0:00:01]} 22. Rg4 {[%emt 0:00:05]} Bd6 {[%emt 0:00:05]} 23. e4 {[%emt 0:00:03]} dxe4 {[%emt 0:00:01]} 24. Rxe4 {[%emt 0:00:01] [#]} Rc8+ {[%emt 0:00:17]} 25. Kb1 {[%emt 0:00:03]} O-O {[%emt 0:00:02]} 26. d5 {[%emt 0:00:13]} Nc5 {[%emt 0:00:03]} 27. Re3 {[%emt 0:00:09]} Rfe8 {[%emt 0:00:14]} 28. Rxe8+ {[%emt 0:00:03]} Rxe8 {[%emt 0:00:01]} 29. Be3 {[%emt 0:00:01]} Ne4 {[%emt 0:00:03]} 30. Rd3 {[%emt 0:00:06]} f6 {[%emt 0:00:03]} 31. a4 {[%emt 0:00:04]} Kf7 {[%emt 0:00:05]} 32. Nd4 {[%emt 0:00:08]} ({Better is} 32. Rb3 $16 Re7 33. Nd2 Nxd2+ 34. Bxd2) 32... Nc5 $11 {[%emt 0:00:02][%csl LRa4,LRd3][%cal Be4c5,Bc5a4,Ba4b2][%mdl 32]} 33. Rd1 {[%emt 0:00:08]} Nxa4 {[%emt 0:00:02]} 34. Ne6 {Hoping for Rc1.} Rc8 {[%emt 0:00:02]} 35. Rg1 {[%emt 0:00:04][%cal Oh4h5]} Be5 {[%emt 0:00:04]} 36. gxf6 {[%emt 0:00:03]} gxf6 {[%emt 0:00:01]} (36... Bxf6 $11 {keeps the balance.} 37. Ng5+ Ke7) 37. Rg4 {[%emt 0:00:01]} (37. h5 $1 $16 {[%cal Rh5g6]} Rg8 38. hxg6+ Rxg6 39. Nd8+ Kg7 40. Rxg6+ (40. Ne6+ Kf7 $18) 40... Kxg6 41. Kc2 (41. Nxb7 Kf5 $16)) 37... Nxb2 {[%emt 0:00:03]} 38. Rb4 {[%emt 0:00:01][%csl LRb2,LRb7]} Nc4 {[%emt 0:00:08] and ...b5 would now be decisive} 39. Rxb7+ {[%emt 0:00:01]} Kg8 {[%emt 0:00:01]} 40. Bc5 {[%emt 0:00:05]} Nd2+ {[%emt 0:00:02]} 41. Ka2 $1 {[%emt 0:00:01]} Ne4 {[%emt 0:00:03]} 42. Rg7+ {[%emt 0:00:04]} Kh8 {[%emt 0:00:01]} 43. Be3 {[%emt 0:00:04][%cal Oa2b3]} Nc3+ {[%emt 0:00:01]} 44. Kb3 {[%emt 0:00:02]} Nxd5 {[%emt 0:00:02]} 45. Rxg6 {[%emt 0:00:01]} Rc3+ {[%emt 0:00:03]} 46. Ka4 $2 {[%emt 0:00:03][%mdl 8192] [#]} (46. Ka2 $15) 46... Bd6 $1 $19 {[%emt 0:00:02][%csl Gd6][%cal Rc3a3]} (46... Rc4+ $2 47. Ka5 $19) 47. Ka5 {[%emt 0:00:01]} (47. Bc5 $19 Bxc5 48. Nxc5 Rxc5 49. Rg1) 47... Ra3# {[%emt 0:00:01] Weighted Error Value: White=0.42/Black=0.14 (very precise)   Loses game:     	White=1     	---        Mistake:       	White=4     	Black=2      Inaccurate:     	White=2     	Black=7      OK:         	White=16    	Black=16     Best:        	White=2     	Black=2      Strong:       	White=1     	Black=1} 0-1

[Event "American Cup Open Champions 2025"]
[Site "Saint Louis"]
[Date "2025.03.16"]
[Round "1.3"]
[White "So, Wesley"]
[Black "Dominguez Perez, Leinier"]
[Result "1/2-1/2"]
[Annotator "TA"]
[ECO "E05"]
[WhiteElo "2748"]
[BlackElo "2741"]
[PlyCount "71"]
[EventDate "2025.03.02"]
[EventType "k.o."]
[EventCountry "USA"]
[SourceTitle "playchess.com"]
[Source "ChessBase"]
[SourceQuality "1"]
[TimeControl "180+2"]

{[%evp 24,71,23,17,18,26,16,20,19,9,7,9,15,6,7,5,5,0,-3,0,0,-47,0,-8,0,-2,0,0,0,-45,-31,-47,0,0,0,0,0,0,0,0,0,0,0,0,0,0,0,0,0,0]} 1. c4 {[%emt 0:00:02]} e6 {[%emt 0:00:01]} 2. g3 {[%emt 0:00:01]} d5 {[%emt 0:00:01]} 3. Bg2 {[%emt 0:00:01]} Nf6 {[%emt 0:00:01]} 4. Nf3 {[%emt 0:00:00]} Be7 {[%emt 0:00:01]} 5. O-O {[%emt 0:00:05]} O-O {[%emt 0:00:03]} 6. d4 {[%emt 0:00:01]} dxc4 {[%emt 0:00:02]} 7. Qc2 {[%emt 0:00:01]} a6 {[%emt 0:00:01]} 8. Qxc4 {[%emt 0:00:05]} b5 {[%emt 0:00:01]} 9. Qc2 {[%emt 0:00:01]} Bb7 {[%emt 0:00:01]} 10. Bd2 {[%emt 0:00:01]} Nc6 {[%emt 0:00:04]} 11. e3 {[%emt 0:00:10]} Nb4 {[%emt 0:00:01]} 12. Bxb4 {[%emt 0:00:01]} Bxb4 {[%emt 0:00:01]} 13. a3 {[%emt 0:00:08]} Bd6 $1 {[%emt 0:00:01] The main line 13...Bd6 scores better than 13...Be7. E05: Open Catalan: 5 Nf3 Be7.} 14. Nbd2 {[%emt 0:00:02]} Rc8 {[%emt 0:00:02]} 15. Nb3 {[%emt 0:00:10]} Be4 {[%emt 0:00:09]} 16. Qc3 {[%emt 0:00:04]} c5 $146 {[%emt 0:00:04]} (16... Bd5 17. Nc5 Bxc5 18. dxc5 Ne4 19. Qc2 Ng5 20. Nxg5 Qxg5 21. h4 Qe7 22. Bxd5 exd5 {½-½ Jumabayev,R (2631)-Nguyen,T (2613) Tata Steel-B 84th 2022 (1)}) 17. dxc5 {[%emt 0:00:10]} (17. Nxc5 Bxc5 18. dxc5 Qd5 $19) 17... Nd7 {[%emt 0:00:02][%cal Rd7c5]} 18. Qd4 {[%emt 0:00:31]} Nxc5 {[%emt 0:00:04]} 19. Nxc5 {[%emt 0:00:01]} Bxf3 {[%emt 0:00:01] This pair of bishops is nice.} 20. Nb7 {[%emt 0:00:21]} (20. Bxf3 {simplifies} Bxc5 21. Qxd8 Rfxd8 22. Rfc1) 20... Bxb7 {[%emt 0:00:08]} 21. Bxb7 {[%emt 0:00:01]} Rc4 {[%emt 0:00:09]} 22. Qd2 {[%emt 0:00:16]} (22. Qa7 $11 {was preferable.}) 22... Qb6 {[%emt 0:00:10]} (22... Qc7 $1 $15 23. b3 (23. Bxa6 Rd8 $17) 23... Rc2) 23. Bf3 {[%emt 0:00:02] Opposite bishops and equal position} Be5 {[%emt 0:00:08]} 24. Rac1 {[%emt 0:00:08]} Rd8 {[%emt 0:00:12]} 25. Qe2 {[%emt 0:00:01]} Rdc8 {[%emt 0:00:01]} 26. Rxc4 {[%emt 0:00:23]} bxc4 {[%emt 0:00:22]} 27. Rc1 {[%emt 0:00:01]} g6 {[%emt 0:00:14]} (27... Bxb2 $15 28. Rxc4 Rxc4 29. Qxc4 Bxa3) 28. Rxc4 $11 {[%emt 0:00:03] The position is equal.} Rxc4 {[%emt 0:00:02]} 29. Qxc4 {[%emt 0:00:01]} Bxb2 {[%emt 0:00:01]} 30. Qb4 {[%emt 0:00:02]} Qxb4 {[%emt 0:00:03]} 31. axb4 {[%emt 0:00:01] KB-KB} Bc3 {[%emt 0:00:02]} 32. Be2 {[%emt 0:00:01]} Bxb4 {[%emt 0:00:01]} 33. Bxa6 {[%emt 0:00:01]} Bc3 {[%emt 0:00:01]} 34. Bb5 {[%emt 0:00:01]} Bb4 {[%emt 0:00:01]} 35. Ba6 {[%emt 0:00:01]} Bc3 {[%emt 0:00:01]} 36. Bb5 {[%emt 0:00:01] Weighted Error Value: White=0.08 (flawless) /Black=0.07 (flawless)   Mistake:       	White=1     	Black=2      Inaccurate:     	White=1     	---        OK:         	White=6     	Black=12     Best:        	White=1     	Black=1} 1/2-1/2

[Event "American Cup Open Champions 2025"]
[Site "Saint Louis"]
[Date "2025.03.15"]
[Round "1.4"]
[White "Aronian, Levon"]
[Black "Sevian, Samuel"]
[Result "1/2-1/2"]
[Annotator "TA"]
[ECO "A28"]
[WhiteElo "2748"]
[BlackElo "2692"]
[PlyCount "80"]
[EventDate "2025.03.02"]
[EventType "k.o."]
[EventCountry "USA"]
[SourceTitle "playchess.com"]
[Source "ChessBase"]
[SourceQuality "1"]
[TimeControl "5400+30"]

{[%evp 9,80,0,-4,-6,16,6,12,11,6,23,-3,-1,3,14,46,52,19,-5,43,0,19,17,22,7,10,7,32,-7,8,6,7,-15,-10,-15,4,0,14,0,8,8,8,-12,5,-9,0,-12,-10,-10,-9,-12,-12,-9,-6,-19,-10,-7,-6,-7,-10,-9,-10,-10,-3,-2,0,-10,-5,-8,0,-10,0,-4,0]} 1. c4 {[%emt 0:00:03]} e5 {[%emt 0:00:15]} 2. Nc3 {[%emt 0:00:12]} Nf6 {[%emt 0:00:10]} 3. Nf3 {[%emt 0:00:06]} Nc6 {[%emt 0:00:29]} 4. e4 {[%emt 0:00:07]} Bb4 {[%emt 0:00:50]} 5. d3 {[%emt 0:00:07][%cal Bd2d3,Bd3d4][%mdl 32]} d6 {[%emt 0:00:07]} 6. Be2 {[%emt 0:00:05] A28: English Opening: Four Knights Variation.} Bg4 {[%emt 0:02:10]} 7. O-O {[%emt 0:00:13]} Bc5 {[%emt 0:02:05] [#]} 8. Nxe5 $1 {[%emt 0:03:59]} Nxe5 {[%emt 0:05:16]} 9. d4 {[%emt 0:00:13]} Bxe2 {[%emt 0:01:33]} 10. Nxe2 {[%emt 0:00:06]} Nxe4 {[%emt 0:14:23][%cal Oe8g8]} 11. Qc2 $146 {[%emt 0:08:26]} ({Predecessor:} 11. f3 Nf6 12. dxc5 dxc5 13. Qxd8+ Rxd8 14. b3 h6 15. Bf4 Nfd7 16. Nc3 O-O 17. Rad1 c6 18. Rfe1 {1-0 Vio,M (1383)-Bhandarkar,D (1530) IECG RL.2007.0.00087 email}) 11... d5 {[%emt 0:11:05][%cal Oc5d4]} 12. dxc5 {[%emt 0:07:04] A sharp opening} O-O {[%emt 0:03:45]} 13. b3 {[%emt 0:14:15]} Re8 {[%emt 0:12:26]} (13... Nc6 $11 {is superior.}) 14. Nf4 {[%emt 0:15:12]} (14. cxd5 $5 Qxd5 15. Bf4 $14) 14... Nxc5 {[%emt 0:03:52]} (14... Ng4 $5) 15. cxd5 {[%emt 0:03:47]} Ncd7 {[%emt 0:00:31]} 16. Bb2 {[%emt 0:02:52]} Rc8 {[%emt 0:06:56]} 17. Qc3 {[%emt 0:06:30]} Qg5 {[%emt 0:03:51]} 18. Qg3 {[%emt 0:02:11]} (18. Ne2 $5 Ng4 19. Ng3 $14) 18... Qxg3 {[%emt 0:01:44] The position is equal.} 19. hxg3 {[%emt 0:00:05]} Ng6 {[%emt 0:00:43]} 20. Nxg6 {[%emt 0:06:27]} hxg6 {[%emt 0:00:10]} 21. Bd4 {[%emt 0:00:16]} Red8 {[%emt 0:05:22]} 22. Rfd1 {[%emt 0:01:32]} a6 {[%emt 0:01:26]} 23. Rac1 {[%emt 0:02:37]} Nf6 {[%emt 0:00:19]} 24. Bxf6 {[%emt 0:02:35]} gxf6 $11 {[%emt 0:00:07][%mdl 4096] Endgame KRR-KRR} 25. Rc5 {[%emt 0:04:07]} Rd7 {[%emt 0:00:51]} 26. Rdc1 {[%emt 0:00:07]} Kg7 {[%emt 0:04:37]} 27. a4 {[%emt 0:02:26]} b6 {[%emt 0:07:05]} 28. Rc6 {[%emt 0:00:16][%cal Od5d6] [#] Black must now prevent d6!.} Rxd5 {[%emt 0:00:05]} 29. Rxc7 {[%emt 0:00:06]} Rxc7 {[%emt 0:00:16]} 30. Rxc7 {[%emt 0:00:04] KR-KR} Rd1+ {[%emt 0:02:19]} 31. Kh2 {[%emt 0:00:15]} Rd3 {[%emt 0:05:37]} 32. b4 {[%emt 0:00:07]} Rd4 {[%emt 0:00:57]} 33. Ra7 {[%emt 0:00:12]} Rxb4 {[%emt 0:00:06]} 34. Rxa6 {[%emt 0:00:03]} f5 {[%emt 0:00:10]} 35. a5 {[%emt 0:00:06]} bxa5 {[%emt 0:00:06]} 36. Rxa5 {[%emt 0:00:03]} Rb2 {[%emt 0:00:04]} 37. Kg1 {[%emt 0:00:07]} Rb1+ {[%emt 0:00:03]} 38. Kh2 {[%emt 0:00:05]} Rb2 {[%emt 0:00:02]} 39. Kg1 {[%emt 0:00:05]} Rb1+ {[%emt 0:00:04]} 40. Kh2 {[%emt 0:00:13]} Rb2 {[%emt 0:00:09] Weighted Error Value: White=0.08 (flawless) /Black=0.10 (very precise)   Mistake:       	---       	Black=1      Inaccurate:     	White=2     	Black=1      OK:         	White=13    	Black=6      Best:        	White=2     	Black=1} 1/2-1/2